[Event "Estonian Chess Championship 2022"]
[Site "Tallinn, Paul Keres Chess House, Estonia"]
[Date "2022.12.14"]
[Round "5.5"]
[White "Soot, Margus"]
[Black "Timoshin, Andrei"]
[Result "0-1"]
[TimeControl "90 minutes for first 40 moves and 15 min. for the rest of the game with 30 sec. increment from move 1"]
[WhiteFideId "4501160"]
[BlackFideId "4503503"]
[WhiteElo "2121"]
[BlackElo "2179"]

1. c4 {

[%clk 01:30:47]

} {

[%emt 00:00:13]

} e6 {

[%clk 01:24:36]

} {

[%emt 00:06:25]

} 2. Nf3 {

[%clk 01:30:47]

} {

[%emt 00:00:30]

} d5 {

[%clk 01:24:50]

} {

[%emt 00:00:16]

} 3. g3 {

[%clk 01:30:24]

} {

[%emt 00:00:52]

} Nf6 {

[%clk 01:23:25]

} {

[%emt 00:01:55]

} 4. Bg2 {

[%clk 01:30:28]

} {

[%emt 00:00:25]

} c5 {

[%clk 01:22:47]

} {

[%emt 00:01:08]

} 5. O-O {

[%clk 01:30:23]

} {

[%emt 00:00:35]

} d4 {

[%clk 01:18:51]

} {

[%emt 00:04:26]

} 6. d3 {

[%clk 01:23:01]

} {

[%emt 00:07:51]

} Nc6 {

[%clk 01:17:41]

} {

[%emt 00:01:41]

} 7. e3 {

[%clk 01:20:22]

} {

[%emt 00:03:09]

} dxe3 {

[%clk 01:07:35]

} {

[%emt 00:10:36]

} 8. Bxe3 {

[%clk 01:16:10]

} {

[%emt 00:04:42]

} e5 {

[%clk 01:04:54]

} {

[%emt 00:03:12]

} 9. Re1 {

[%clk 01:14:09]

} {

[%emt 00:02:31]

} Bd6 {

[%clk 00:52:49]

} {

[%emt 00:12:35]

} 10. Nc3 {

[%clk 01:12:32]

} {

[%emt 00:02:07]

} O-O {

[%clk 00:49:56]

} {

[%emt 00:03:22]

} 11. Ne4 {

[%clk 01:07:23]

} {

[%emt 00:05:38]

} Nxe4 {

[%clk 00:50:07]

} {

[%emt 00:00:20]

} 12. dxe4 {

[%clk 01:07:51]

} {

[%emt 00:00:01]

} Nd4 {

[%clk 00:50:08]

} {

[%emt 00:00:30]

} 13. Nxd4 {

[%clk 01:07:14]

} {

[%emt 00:01:07]

} cxd4 {

[%clk 00:50:07]

} {

[%emt 00:00:31]

} 14. Bd2 {

[%clk 01:07:39]

} {

[%emt 00:00:05]

} Be6 {

[%clk 00:49:11]

} {

[%emt 00:01:26]

} 15. Qa4 {

[%clk 01:07:01]

} {

[%emt 00:01:07]

} a6 {

[%clk 00:37:21]

} {

[%emt 00:12:21]

} 16. Bf1 {

[%clk 01:02:52]

} {

[%emt 00:04:38]

} Qe7 {

[%clk 00:20:44]

} {

[%emt 00:17:08]

} 17. Rec1 {

[%clk 00:59:17]

} {

[%emt 00:04:06]

} f5 {

[%clk 00:14:00]

} {

[%emt 00:07:14]

} 18. exf5 {

[%clk 00:56:34]

} {

[%emt 00:03:13]

} Rxf5 {

[%clk 00:14:08]

} {

[%emt 00:00:23]

} 19. c5 {

[%clk 00:55:40]

} {

[%emt 00:01:24]

} Bxc5 {

[%clk 00:10:37]

} {

[%emt 00:04:01]

} 20. Bh3 {

[%clk 00:53:46]

} {

[%emt 00:02:23]

} Rf6 {

[%clk 00:11:06]

} {

[%emt 00:00:02]

} 21. Bg5 {

[%clk 00:53:56]

} {

[%emt 00:00:19]

} Bxh3 {

[%clk 00:07:45]

} {

[%emt 00:03:52]

} 22. Bxf6 {

[%clk 00:53:15]

} {

[%emt 00:01:11]

} Qxf6 {

[%clk 00:08:13]

} {

[%emt 00:00:02]

} 23. Rxc5 {

[%clk 00:53:12]

} {

[%emt 00:00:33]

} Rf8 {

[%clk 00:08:41]

} {

[%emt 00:00:02]

} 24. Qc4+ {

[%clk 00:50:12]

} {

[%emt 00:03:30]

} Kh8 {

[%clk 00:09:09]

} {

[%emt 00:00:02]

} 25. Qe2 {

[%clk 00:50:41]

} d3 {

[%clk 00:08:23]

} {

[%emt 00:01:17]

} 26. Qe3 {

[%clk 00:51:00]

} {

[%emt 00:00:11]

} e4 {

[%clk 00:08:44]

} {

[%emt 00:00:09]

} 27. Rc3 {

[%clk 00:49:02]

} {

[%emt 00:02:27]

} Bg4 {

[%clk 00:03:58]

} {

[%emt 00:05:16]

} 28. Rac1 {

[%clk 00:47:42]

} {

[%emt 00:01:50]

} h6 {

[%clk 00:02:24]

} {

[%emt 00:02:04]

} 29. f4 {

[%clk 00:44:05]

} {

[%emt 00:04:07]

} exf3 {

[%clk 00:00:43]

} {

[%emt 00:02:11]

} 30. Kf2 {

[%clk 00:44:26]

} {

[%emt 00:00:08]

} Qg6 {

[%clk 00:01:01]

} {

[%emt 00:00:11]

} 31. Re1 {

[%clk 00:43:29]

} {

[%emt 00:01:27]

} Bf5 {

[%clk 00:00:39]

} {

[%emt 00:00:53]

} 32. Qd4 {

[%clk 00:41:52]

} {

[%emt 00:02:06]

} Qg5 {

[%clk 00:00:37]

} {

[%emt 00:00:32]

} 33. Qf4 {

[%clk 00:40:40]

} {

[%emt 00:01:42]

} Qd8 {

[%clk 00:01:05]

} {

[%emt 00:00:02]

} 34. Rc7 {

[%clk 00:39:38]

} {

[%emt 00:01:32]

} Qf6 {

[%clk 00:00:34]

} {

[%emt 00:01:01]

} 35. Qb4 {

[%clk 00:25:14]

} {

[%emt 00:14:54]

} Rd8 {

[%clk 00:00:35]

} {

[%emt 00:00:29]

} 36. Qc3 {

[%clk 00:21:11]

} {

[%emt 00:04:33]

} Qb6+ {

[%clk 00:00:34]

} {

[%emt 00:00:32]

} 37. Kxf3 {

[%clk 00:20:53]

} {

[%emt 00:00:48]

} Qg6 {

[%clk 00:00:41]

} {

[%emt 00:00:23]

} 38. Qd2 {

[%clk 00:18:44]

} {

[%emt 00:02:39]

} Rf8 {

[%clk 00:00:32]

} {

[%emt 00:00:39]

} 39. Ree7 {

[%clk 00:18:20]

} {

[%emt 00:00:54]

} Bh3+ {

[%clk 00:00:35]

} {

[%emt 00:00:27]

} 40. Ke3 {

[%clk 00:33:09]

} {

[%emt 00:00:41]

} Qg5+ {

[%clk 00:15:44]

} {

[%emt 00:00:21]

} 41. Kxd3 {

[%clk 00:33:30]

} {

[%emt 00:00:09]

} Rd8+ {

[%clk 00:16:00]

} {

[%emt 00:00:15]

} 42. Rxb7 {

[%emt 00:00:27]

} Rc8 {

[%emt 00:00:04]

} 43. Rb8 0-1

[Event "Estonian Chess Championship 2022"]
[Site "Tallinn, Paul Keres Chess House, Estonia"]
[Date "2022.12.15"]
[Round "6.1"]
[White "Kanep, Meelis"]
[Black "Timoshin, Andrei"]
[Result "0-1"]
[TimeControl "90 minutes for first 40 moves and 15 min. for the rest of the game with 30 sec. increment from move 1"]
[WhiteTitle "GM"]
[WhiteFideId "4501047"]
[BlackFideId "4503503"]
[WhiteElo "2412"]
[BlackElo "2179"]

1. d4 {

[%clk 01:28:28]

} {

[%emt 00:02:29]

} d5 {

[%clk 01:29:35]

} {

[%emt 00:01:25]

} 2. c4 {

[%clk 01:28:46]

} {

[%emt 00:00:11]

} e6 {

[%clk 01:30:01]

} {

[%emt 00:00:05]

} 3. Nf3 {

[%clk 01:28:52]

} {

[%emt 00:00:24]

} Nf6 {

[%clk 01:30:21]

} {

[%emt 00:00:10]

} 4. Nc3 {

[%clk 01:28:48]

} {

[%emt 00:00:34]

} Bb4 {

[%clk 01:30:13]

} {

[%emt 00:00:38]

} 5. g3 {

[%clk 01:26:29]

} {

[%emt 00:02:49]

} O-O {

[%clk 01:29:19]

} {

[%emt 00:01:25]

} 6. Bg2 {

[%clk 01:22:12]

} {

[%emt 00:04:46]

} dxc4 {

[%clk 01:24:14]

} {

[%emt 00:05:35]

} 7. O-O {

[%clk 01:19:36]

} {

[%emt 00:03:06]

} Nc6 {

[%clk 01:02:31]

} {

[%emt 00:22:13]

} 8. e3 {

[%clk 01:11:59]

} {

[%emt 00:08:06]

} Rb8 {

[%clk 01:00:31]

} {

[%emt 00:02:30]

} 9. Qe2 {

[%clk 00:50:32]

} {

[%emt 00:21:56]

} b5 {

[%clk 00:56:14]

} {

[%emt 00:04:48]

} 10. Rd1 {

[%clk 00:50:29]

} {

[%emt 00:00:33]

} Nd5 {

[%clk 00:41:46]

} {

[%emt 00:14:58]

} 11. Bd2 {

[%clk 00:44:47]

} {

[%emt 00:06:12]

} Nxc3 {

[%clk 00:39:25]

} {

[%emt 00:02:51]

} 12. bxc3 {

[%clk 00:42:31]

} {

[%emt 00:02:45]

} Ba3 {

[%clk 00:39:54]

} {

[%emt 00:00:02]

} 13. e4 {

[%clk 00:41:18]

} {

[%emt 00:01:43]

} Bb7 {

[%clk 00:40:07]

} {

[%emt 00:00:17]

} 14. h4 {

[%clk 00:31:19]

} {

[%emt 00:10:29]

} Ne7 {

[%clk 00:18:23]

} {

[%emt 00:22:15]

} 15. h5 {

[%clk 00:29:42]

} {

[%emt 00:02:06]

} c5 {

[%clk 00:17:54]

} {

[%emt 00:01:00]

} 16. h6 {

[%clk 00:27:19]

} {

[%emt 00:02:52]

} g6 {

[%clk 00:17:54]

} {

[%emt 00:00:31]

} 17. Bf4 {

[%clk 00:24:09]

} {

[%emt 00:03:40]

} Rc8 {

[%clk 00:18:07]

} {

[%emt 00:00:17]

} 18. d5 {

[%clk 00:18:05]

} {

[%emt 00:06:34]

} exd5 {

[%clk 00:15:26]

} {

[%emt 00:03:12]

} 19. exd5 {

[%clk 00:18:29]

} {

[%emt 00:00:05]

} Re8 {

[%clk 00:14:23]

} {

[%emt 00:01:33]

} 20. d6 {

[%clk 00:12:59]

} {

[%emt 00:06:01]

} Nd5 {

[%clk 00:11:26]

} {

[%emt 00:03:27]

} 21. Qd2 {

[%clk 00:13:24]

} {

[%emt 00:00:04]

} b4 {

[%clk 00:01:51]

} {

[%emt 00:10:05]

} 22. d7 {

[%clk 00:11:07]

} {

[%emt 00:02:47]

} Qxd7 {

[%clk 00:01:57]

} {

[%emt 00:00:24]

} 23. Ne5 {

[%clk 00:11:16]

} {

[%emt 00:00:21]

} bxc3 {

[%clk 00:00:54]

} {

[%emt 00:01:33]

} 24. Nxd7 {

[%clk 00:07:55]

} {

[%emt 00:03:52]

} cxd2 {

[%clk 00:01:22]

} {

[%emt 00:00:02]

} 25. Bxd5 {

[%clk 00:08:06]

} {

[%emt 00:00:19]

} Bxd5 {

[%clk 00:01:51]

} 26. Nf6+ {

[%clk 00:08:22]

} {

[%emt 00:00:13]

} Kh8 {

[%clk 00:02:21]

} 27. Nxe8 {

[%clk 00:04:23]

} {

[%emt 00:04:31]

} Rxe8 {

[%clk 00:02:36]

} {

[%emt 00:00:14]

} 28. Rxd2 {

[%clk 00:03:35]

} {

[%emt 00:01:17]

} Bf3 {

[%clk 00:01:38]

} {

[%emt 00:01:28]

} 29. Be5+ {

[%clk 00:03:26]

} {

[%emt 00:00:39]

} Kg8 {

[%clk 00:01:47]

} {

[%emt 00:00:20]

} 30. Bf6 {

[%clk 00:03:03]

} {

[%emt 00:00:53]

} Bb4 {

[%clk 00:01:02]

} {

[%emt 00:01:16]

} 31. Rc2 {

[%clk 00:00:58]

} {

[%emt 00:02:35]

} Re6 {

[%clk 00:00:33]

} {

[%emt 00:01:00]

} 32. Bg7 {

[%clk 00:00:46]

} {

[%emt 00:00:41]

} Be2 {

[%clk 00:00:37]

} {

[%emt 00:00:27]

} 33. a3 {

[%clk 00:00:53]

} {

[%emt 00:00:24]

} Ba5 {

[%clk 00:00:38]

} {

[%emt 00:00:29]

} 34. Bc3 {

[%clk 00:00:36]

} {

[%emt 00:00:47]

} Bd3 {

[%clk 00:00:49]

} {

[%emt 00:00:19]

} 35. Rcc1 {

[%clk 00:00:51]

} {

[%emt 00:00:15]

} Bxc3 {

[%clk 00:00:53]

} {

[%emt 00:00:26]

} 36. Rxc3 {

[%clk 00:01:19]

} {

[%emt 00:00:02]

} g5 {

[%clk 00:01:10]

} {

[%emt 00:00:14]

} 37. f3 {

[%clk 00:00:45]

} {

[%emt 00:01:05]

} Rxh6 {

[%clk 00:00:39]

} {

[%emt 00:01:00]

} 38. Re1 {

[%clk 00:01:01]

} {

[%emt 00:00:13]

} Rb6 {

[%clk 00:00:36]

} {

[%emt 00:00:33]

} 39. Re5 {

[%clk 00:00:49]

} {

[%emt 00:00:43]

} Rb1+ {

[%clk 00:00:45]

} {

[%emt 00:00:22]

} 40. Kg2 {

[%clk 00:15:58]

} {

[%emt 00:00:20]

} Rb2+ {

[%clk 00:15:50]

} {

[%emt 00:00:25]

} 41. Kg1 {

[%clk 00:16:12]

} {

[%emt 00:00:15]

} Rb1+ {

[%clk 00:13:34]

} {

[%emt 00:02:47]

} 42. Kf2 {

[%clk 00:13:53]

} {

[%emt 00:02:49]

} Rb2+ {

[%clk 00:13:56]

} {

[%emt 00:00:08]

} 43. Ke1 {

[%clk 00:13:12]

} {

[%emt 00:01:10]

} f6 {

[%clk 00:08:18]

} {

[%emt 00:06:08]

} 44. Rxc5 {

[%clk 00:12:37]

} {

[%emt 00:01:06]

} h5 {

[%clk 00:08:20]

} {

[%emt 00:00:28]

} 45. Ra5 {

[%clk 00:09:01]

} {

[%emt 00:04:06]

} h4 {

[%clk 00:05:49]

} {

[%emt 00:03:01]

} 46. gxh4 {

[%clk 00:09:08]

} {

[%emt 00:00:23]

} gxh4 {

[%clk 00:06:18]

} 47. Rh5 {

[%clk 00:07:20]

} {

[%emt 00:02:17]

} Rh2 {

[%clk 00:06:46]

} {

[%emt 00:00:03]

} 48. Rc1 {

[%clk 00:00:53]

} {

[%emt 00:06:57]

} Kg7 {

[%clk 00:05:31]

} {

[%emt 00:01:45]

} 49. f4 {

[%clk 00:00:33]

} {

[%emt 00:00:51]

} Kg6 {

[%clk 00:05:43]

} {

[%emt 00:00:19]

} 50. Rh8 {

[%clk 00:00:43]

} {

[%emt 00:00:19]

} Kf5 {

[%clk 00:06:03]

} {

[%emt 00:00:10]

} 51. Rh6 {

[%clk 00:00:55]

} {

[%emt 00:00:18]

} h3 {

[%clk 00:04:13]

} {

[%emt 00:02:19]

} 52. Rd1 {

[%clk 00:00:45]

} {

[%emt 00:00:40]

} Kxf4 {

[%clk 00:02:20]

} {

[%emt 00:02:23]

} 53. Rxf6+ {

[%clk 00:00:32]

} {

[%emt 00:00:43]

} Ke3 {

[%clk 00:02:15]

} {

[%emt 00:00:34]

} 54. Re6+ {

[%clk 00:00:31]

} {

[%emt 00:00:32]

} Be4 {

[%clk 00:02:42]

} {

[%emt 00:00:03]

} 0-1

[Event "Estonian Chess Championship 2022"]
[Site "Tallinn, Paul Keres Chess House, Estonia"]
[Date "2022.12.15"]
[Round "6.2"]
[White "Medar, Marti"]
[Black "Soot, Margus"]
[Result "1-0"]
[TimeControl "90 minutes for first 40 moves and 15 min. for the rest of the game with 30 sec. increment from move 1"]
[WhiteFideId "4501870"]
[BlackFideId "4501160"]
[WhiteElo "2069"]
[BlackElo "2121"]

1. d4 {

[%clk 01:30:30]

} {

[%emt 00:00:28]

} d5 {

[%clk 01:29:15]

} {

[%emt 00:01:45]

} 2. Bf4 {

[%clk 01:30:14]

} {

[%emt 00:00:46]

} Nf6 {

[%clk 01:29:29]

} {

[%emt 00:00:17]

} 3. e3 {

[%clk 01:30:33]

} {

[%emt 00:00:10]

} c6 {

[%clk 01:29:06]

} {

[%emt 00:00:53]

} 4. c3 {

[%clk 01:29:55]

} {

[%emt 00:01:08]

} Bf5 {

[%clk 01:29:21]

} {

[%emt 00:00:14]

} 5. Nd2 {

[%clk 01:29:01]

} {

[%emt 00:01:23]

} e6 {

[%clk 01:29:45]

} {

[%emt 00:00:08]

} 6. Be2 {

[%clk 01:27:49]

} {

[%emt 00:01:42]

} Be7 {

[%clk 01:30:05]

} {

[%emt 00:00:10]

} 7. g4 {

[%clk 01:25:57]

} {

[%emt 00:02:22]

} Bg6 {

[%clk 01:30:30]

} {

[%emt 00:00:06]

} 8. h4 {

[%clk 01:25:55]

} {

[%emt 00:00:32]

} h6 {

[%clk 01:30:59]

} {

[%emt 00:00:02]

} 9. Nh3 {

[%clk 01:16:56]

} {

[%emt 00:09:27]

} Qb6 {

[%clk 01:23:27]

} {

[%emt 00:08:03]

} 10. Qb3 {

[%clk 01:13:26]

} {

[%emt 00:04:00]

} Nbd7 {

[%clk 01:22:51]

} {

[%emt 00:01:06]

} 11. f3 {

[%clk 01:12:09]

} {

[%emt 00:01:47]

} Qxb3 {

[%clk 01:20:12]

} {

[%emt 00:03:10]

} 12. axb3 {

[%clk 01:12:26]

} {

[%emt 00:00:12]

} c5 {

[%clk 01:20:23]

} {

[%emt 00:00:19]

} 13. Bg3 {

[%clk 01:11:16]

} {

[%emt 00:01:39]

} cxd4 {

[%clk 01:17:03]

} {

[%emt 00:03:51]

} 14. exd4 {

[%clk 01:11:34]

} {

[%emt 00:00:11]

} Bh7 {

[%clk 01:17:02]

} {

[%emt 00:00:31]

} 15. Nf4 {

[%clk 01:09:03]

} {

[%emt 00:03:01]

} Bd6 {

[%clk 01:16:20]

} {

[%emt 00:01:14]

} 16. g5 {

[%clk 01:08:13]

} {

[%emt 00:01:19]

} Ng8 {

[%clk 01:16:28]

} {

[%emt 00:00:23]

} 17. Kf2 {

[%clk 01:03:41]

} {

[%emt 00:05:01]

} Ne7 {

[%clk 01:08:32]

} {

[%emt 00:08:26]

} 18. Nh5 {

[%clk 00:58:41]

} {

[%emt 00:05:30]

} Bxg3+ {

[%clk 01:08:52]

} {

[%emt 00:00:11]

} 19. Kxg3 {

[%clk 00:55:58]

} {

[%emt 00:03:12]

} Nf5+ {

[%clk 01:09:03]

} {

[%emt 00:00:19]

} 20. Kf2 {

[%clk 00:56:22]

} {

[%emt 00:00:05]

} Ke7 {

[%clk 01:00:45]

} {

[%emt 00:08:48]

} 21. Rag1 {

[%clk 00:45:35]

} {

[%emt 00:11:17]

} Nf8 {

[%clk 00:38:44]

} {

[%emt 00:22:30]

} 22. Bd3 {

[%clk 00:39:53]

} {

[%emt 00:06:13]

} Nxh4 {

[%clk 00:31:03]

} {

[%emt 00:08:11]

} 23. gxh6 {

[%clk 00:30:15]

} {

[%emt 00:10:07]

} g5 {

[%clk 00:24:22]

} {

[%emt 00:07:11]

} 24. Bxh7 {

[%clk 00:28:32]

} {

[%emt 00:02:12]

} Rxh7 {

[%clk 00:24:36]

} {

[%emt 00:00:18]

} 25. Rxg5 {

[%clk 00:22:45]

} {

[%emt 00:06:15]

} Nfg6 {

[%clk 00:24:04]

} {

[%emt 00:01:03]

} 26. Nf4 {

[%clk 00:08:41]

} {

[%emt 00:14:35]

} Rxh6 {

[%clk 00:22:27]

} {

[%emt 00:02:07]

} 27. Rxg6 {

[%clk 00:06:29]

} {

[%emt 00:02:42]

} Rxg6 {

[%clk 00:13:47]

} {

[%emt 00:09:10]

} 28. Rxh4 {

[%clk 00:06:19]

} {

[%emt 00:00:40]

} Rgg8 {

[%clk 00:13:57]

} {

[%emt 00:00:20]

} 29. Rh1 {

[%clk 00:05:15]

} {

[%emt 00:01:33]

} Rh8 {

[%clk 00:14:06]

} {

[%emt 00:00:21]

} 30. Ra1 {

[%clk 00:04:46]

} {

[%emt 00:00:59]

} a6 {

[%clk 00:14:35]

} {

[%emt 00:00:02]

} 31. c4 {

[%clk 00:05:01]

} {

[%emt 00:00:14]

} dxc4 {

[%clk 00:13:35]

} {

[%emt 00:01:30]

} 32. bxc4 {

[%clk 00:05:16]

} {

[%emt 00:00:15]

} b5 {

[%clk 00:13:28]

} {

[%emt 00:00:38]

} 33. Ra5 {

[%clk 00:03:31]

} {

[%emt 00:02:15]

} bxc4 {

[%clk 00:12:30]

} {

[%emt 00:01:28]

} 34. Nxc4 {

[%clk 00:03:44]

} {

[%emt 00:00:17]

} Rhc8 {

[%clk 00:12:38]

} {

[%emt 00:00:22]

} 35. b3 {

[%clk 00:02:54]

} {

[%emt 00:01:20]

} Rcb8 {

[%clk 00:12:21]

} {

[%emt 00:00:47]

} 36. Ra3 {

[%clk 00:03:07]

} {

[%emt 00:00:17]

} Rb5 {

[%clk 00:11:29]

} {

[%emt 00:01:22]

} 37. Nd3 {

[%clk 00:03:09]

} {

[%emt 00:00:28]

} f6 {

[%clk 00:09:13]

} {

[%emt 00:02:46]

} 38. f4 {

[%clk 00:02:45]

} {

[%emt 00:00:52]

} a5 {

[%clk 00:03:27]

} {

[%emt 00:06:18]

} 39. Ke3 {

[%clk 00:02:37]

} {

[%emt 00:00:38]

} Rh8 {

[%clk 00:02:57]

} {

[%emt 00:00:59]

} 40. Nxa5 {

[%clk 00:17:22]

} {

[%emt 00:00:45]

} Rh3+ {

[%clk 00:18:03]

} {

[%emt 00:00:24]

} 41. Kd2 {

[%clk 00:17:26]

} {

[%emt 00:00:25]

} Kd6 {

[%clk 00:16:34]

} {

[%emt 00:02:01]

} 42. Kc3 {

[%clk 00:13:02]

} {

[%emt 00:04:53]

} Kd5 {

[%clk 00:12:57]

} {

[%emt 00:04:07]

} 43. Nc4 {

[%clk 00:10:34]

} {

[%emt 00:02:57]

} Rb8 {

[%clk 00:12:03]

} {

[%emt 00:01:25]

} 44. Ra5+ {

[%clk 00:08:34]

} {

[%emt 00:02:30]

} Ke4 {

[%clk 00:12:26]

} {

[%emt 00:00:07]

} 45. Nd6+ {

[%clk 00:05:45]

} {

[%emt 00:03:19]

} Ke3 {

[%clk 00:12:37]

} {

[%emt 00:00:18]

} 46. f5 {

[%clk 00:04:20]

} {

[%emt 00:01:56]

} Rd8 {

[%clk 00:07:02]

} {

[%emt 00:06:05]

} 47. Nc4 {

[%clk 00:04:20]

} {

[%emt 00:00:30]

} Ke4 {

[%clk 00:07:30]

} {

[%emt 00:00:01]

} 48. Nd2+ {

[%clk 00:04:34]

} {

[%emt 00:00:16]

} Ke3 {

[%clk 00:07:59]

} {

[%emt 00:00:01]

} 49. Nc4 {

[%clk 00:03:39]

} {

[%emt 00:01:25]

} Ke4 {

[%clk 00:08:28]

} {

[%emt 00:00:01]

} 50. Nd2+ {

[%clk 00:01:29]

} {

[%emt 00:02:39]

} Ke3 {

[%clk 00:08:49]

} {

[%emt 00:00:08]

} 51. Ra1 {

[%clk 00:01:17]

} {

[%emt 00:00:42]

} Rc8+ {

[%clk 00:08:18]

} {

[%emt 00:01:01]

} 52. Nc4 {

[%clk 00:01:37]

} {

[%emt 00:00:10]

} Ke4 {

[%clk 00:08:47]

} {

[%emt 00:00:01]

} 53. Re1+ {

[%clk 00:01:00]

} {

[%emt 00:01:06]

} Kxf5 {

[%clk 00:09:15]

} {

[%emt 00:00:02]

} 54. Rf1+ {

[%clk 00:00:54]

} {

[%emt 00:00:36]

} Kg5 {

[%clk 00:03:59]

} {

[%emt 00:05:47]

} 55. b4 {

[%clk 00:01:04]

} {

[%emt 00:00:20]

} f5 {

[%clk 00:02:15]

} {

[%emt 00:02:14]

} 56. b5 {

[%clk 00:01:21]

} {

[%emt 00:00:13]

} Rd8 {

[%clk 00:00:41]

} {

[%emt 00:02:05]

} 57. Nce5 {

[%clk 00:01:11]

} {

[%emt 00:00:39]

} Kf6 {

[%clk 00:00:46]

} {

[%emt 00:00:26]

} 58. b6 {

[%clk 00:01:06]

} {

[%emt 00:00:36]

} Rc8+ {

[%clk 00:01:00]

} {

[%emt 00:00:15]

} 59. Kb4 {

[%clk 00:01:15]

} {

[%emt 00:00:21]

} Rh4 {

[%clk 00:00:59]

} {

[%emt 00:00:31]

} 60. Nf3 {

[%clk 00:01:23]

} {

[%emt 00:00:22]

} Re4 {

[%clk 00:00:56]

} {

[%emt 00:00:34]

} 61. b7 {

[%clk 00:01:12]

} {

[%emt 00:00:41]

} Rb8 {

[%clk 00:00:54]

} {

[%emt 00:00:32]

} 62. Nc5 {

[%clk 00:01:35]

} {

[%emt 00:00:07]

} Rxb7+ {

[%clk 00:01:19]

} {

[%emt 00:00:05]

} 63. Nxb7 {

[%clk 00:01:52]

} {

[%emt 00:00:13]

} e5 {

[%clk 00:01:49]

} {

[%emt 00:00:01]

} 64. Nc5 {

[%clk 00:02:06]

} {

[%emt 00:00:15]

} 1-0